[Event "Titled Tuesday Blitz January 03 Late 2023"]
[White "Berezin, Viktor"]
[Black "Ortega Ruiz, Jose Miguel"]
[WhiteFideId "14107872"]
[BlackFideId "2209713"]
[WhiteElo "2307"]
[BlackElo "2351"]
[Result "0-1"]
[Round "08"]
[TimeControl "180+2"]
[Date "2023.01.03"]
[WhiteClock "0:00:02"]
[BlackClock "0:00:08"]

1. Nf3 {[%clk 0:02:54]}  g6 {[%clk 0:02:59]} 2. d4 {[%clk 0:02:54]}  Bg7 {[%clk 0:02:59]} 3. g3 {[%clk 0:02:53]}  d6 {[%clk 0:02:59]} 4. Bg2 {[%clk 0:02:53]}  Nf6 {[%clk 0:03:00]} 5. O-O {[%clk 0:02:53]}  O-O {[%clk 0:03:00]} 6. c4 {[%clk 0:02:54]}  c5 {[%clk 0:02:58]} 7. d5 {[%clk 0:02:53]}  Na6 {[%clk 0:02:55]} 8. Nc3 {[%clk 0:02:52]}  Bf5 {[%clk 0:02:55]} 9. Ne1 {[%clk 0:02:50]}  Nc7 {[%clk 0:02:52]} 10. e4 {[%clk 0:02:50]}  Bd7 {[%clk 0:02:52]} 11. a4 {[%clk 0:02:47]}  Rb8 {[%clk 0:02:52]} 12. Nd3 {[%clk 0:02:45]}  a6 {[%clk 0:02:51]} 13. a5 {[%clk 0:02:44]}  Nfe8 {[%clk 0:02:44]} 14. f4 {[%clk 0:02:44]}  b5 {[%clk 0:02:43]} 15. axb6 {[%clk 0:02:43]}  Rxb6 {[%clk 0:02:43]} 16. e5 {[%clk 0:02:44]}  Bf5 {[%clk 0:02:40]} 17. Ne4 {[%clk 0:02:40]}  Qb8 {[%clk 0:02:35]} 18. g4 {[%clk 0:02:38]}  Bxe4 {[%clk 0:02:35]} 19. Bxe4 {[%clk 0:02:39]}  e6 {[%clk 0:02:29]} 20. Bg2 {[%clk 0:02:07]}  exd5 {[%clk 0:02:19]} 21. cxd5 {[%clk 0:02:08]}  Rb3 {[%clk 0:02:18]} 22. Kh1 {[%clk 0:01:47]}  c4 {[%clk 0:02:17]} 23. Nf2 {[%clk 0:01:46]}  Qb7 {[%clk 0:02:09]} 24. e6 {[%clk 0:01:35]}  Nb5 {[%clk 0:02:06]} 25. f5 {[%clk 0:01:25]}  Be5 {[%clk 0:01:59]} 26. Ne4 {[%clk 0:01:20]}  Rd3 {[%clk 0:01:59]} 27. Qe1 {[%clk 0:01:15]}  f6 {[%clk 0:01:00]} 28. g5 {[%clk 0:01:02]}  gxf5 {[%clk 0:01:00]} 29. Rxf5 {[%clk 0:00:50]}  Ng7 {[%clk 0:01:00]} 30. Rxf6 {[%clk 0:00:43]}  Nd4 {[%clk 0:00:43]} 31. Rxf8+ {[%clk 0:00:36]}  Kxf8 {[%clk 0:00:44]} 32. Qf1+ {[%clk 0:00:21]}  Ngf5 {[%clk 0:00:37]} 33. Bf4 {[%clk 0:00:21]}  Bxf4 {[%clk 0:00:20]} 34. Qxf4 {[%clk 0:00:22]}  Qxd5 {[%clk 0:00:20]} 35. Rf1 {[%clk 0:00:20]}  Qe5 {[%clk 0:00:21]} 36. Qg4 {[%clk 0:00:19]}  Kg7 {[%clk 0:00:18]} 37. e7 {[%clk 0:00:09]}  Nxe7 {[%clk 0:00:12]} 38. Nf6 {[%clk 0:00:09]}  Ndf5 {[%clk 0:00:11]} 39. Nh5+ {[%clk 0:00:09]}  Kg8 {[%clk 0:00:10]} 40. Nf4 {[%clk 0:00:09]}  Rd4 {[%clk 0:00:10]} 41. Qf3 {[%clk 0:00:07]}  Ne3 {[%clk 0:00:09]} 42. Qa8+ {[%clk 0:00:06]}  Kg7 {[%clk 0:00:07]} 43. Nh5+ {[%clk 0:00:06]}  Kg6 {[%clk 0:00:08]} 44. Qe8+ {[%clk 0:00:06]}  Kxg5 {[%clk 0:00:08]} 45. Rg1 {[%clk 0:00:04]}  Rg4 {[%clk 0:00:08]} 46. Ng3 {[%clk 0:00:03]}  Rxg3 {[%clk 0:00:08]} 47. hxg3 {[%clk 0:00:03]}  Kg4 {[%clk 0:00:08]} 48. Qf8 {[%clk 0:00:02]}  Qh5+ {[%clk 0:00:08]} 49. Bh3+ {[%clk 0:00:02]}  Qxh3# {[%clk 0:00:08]} 0-1


[Site "https://www.chess.com"]

[Event "Titled Tuesday Blitz January 03 Late 2023"]
[White "Andreev, Eduard"]
[Black "Dudzinski, Pawel"]
[WhiteFideId "14103400"]
[BlackFideId "1117890"]
[WhiteElo "2413"]
[BlackElo "2186"]
[Result "1-0"]
[Round "08"]
[TimeControl "180+2"]
[Date "2023.01.03"]
[WhiteClock "0:00:37"]
[BlackClock "0:00:01"]

1. Nf3 {[%clk 0:03:00]}  g6 {[%clk 0:02:56]} 2. g3 {[%clk 0:03:00]}  Bg7 {[%clk 0:02:57]} 3. d4 {[%clk 0:03:01]}  f5 {[%clk 0:02:56]} 4. Bg2 {[%clk 0:03:01]}  Nf6 {[%clk 0:02:56]} 5. O-O {[%clk 0:03:01]}  d6 {[%clk 0:02:57]} 6. c4 {[%clk 0:03:00]}  O-O {[%clk 0:02:57]} 7. Nc3 {[%clk 0:03:01]}  Qe8 {[%clk 0:02:58]} 8. Re1 {[%clk 0:03:01]}  e5 {[%clk 0:02:56]} 9. e4 {[%clk 0:03:01]}  f4 {[%clk 0:02:55]} 10. gxf4 {[%clk 0:02:53]}  Nh5 {[%clk 0:02:52]} 11. Nd5 {[%clk 0:02:39]}  Na6 {[%clk 0:02:49]} 12. dxe5 {[%clk 0:02:11]}  dxe5 {[%clk 0:02:47]} 13. Nxe5 {[%clk 0:02:07]}  c6 {[%clk 0:02:40]} 14. Nc3 {[%clk 0:02:01]}  Nxf4 {[%clk 0:02:38]} 15. Bxf4 {[%clk 0:01:50]}  Bxe5 {[%clk 0:02:38]} 16. Bxe5 {[%clk 0:01:47]}  Qxe5 {[%clk 0:02:38]} 17. Qd3 {[%clk 0:01:43]}  Be6 {[%clk 0:02:32]} 18. b3 {[%clk 0:01:42]}  Nb4 {[%clk 0:02:05]} 19. Qd2 {[%clk 0:01:20]}  Rad8 {[%clk 0:01:58]} 20. Nd5 {[%clk 0:01:20]}  Na6 {[%clk 0:01:16]} 21. Qh6 {[%clk 0:01:17]}  Bc8 {[%clk 0:00:38]} 22. Ne3 {[%clk 0:01:00]}  Rd2 {[%clk 0:00:14]} 23. Rf1 {[%clk 0:00:54]}  Rdxf2 {[%clk 0:00:13]} 24. Rad1 {[%clk 0:00:52]}  Rxf1+ {[%clk 0:00:11]} 25. Rxf1 {[%clk 0:00:53]}  Rxf1+ {[%clk 0:00:08]} 26. Nxf1 {[%clk 0:00:53]}  Qd4+ {[%clk 0:00:05]} 27. Kh1 {[%clk 0:00:51]}  Nc5 {[%clk 0:00:05]} 28. Qf4 {[%clk 0:00:50]}  Be6 {[%clk 0:00:05]} 29. Qb8+ {[%clk 0:00:46]}  Kf7 {[%clk 0:00:05]} 30. Qc7+ {[%clk 0:00:46]}  Qd7 {[%clk 0:00:03]} 31. Qe5 {[%clk 0:00:44]}  Nd3 {[%clk 0:00:02]} 32. Qh8 {[%clk 0:00:44]}  Nf2+ {[%clk 0:00:01]} 33. Kg1 {[%clk 0:00:43]}  Ng4 {[%clk 0:00:01]} 34. Qxh7+ {[%clk 0:00:40]}  Kf6 {[%clk 0:00:01]} 35. Qh8+ {[%clk 0:00:37]}  Kf7 {[%clk 0:00:01]} 36. h3 {[%clk 0:00:37]} 1-0


[Site "https://www.chess.com"]

[Event "Titled Tuesday Blitz January 03 Late 2023"]
[White "Carbone, Diego"]
[Black "aidenzhouu"]
[WhiteFideId "3002179"]
[WhiteElo "2336"]
[BlackElo "2395"]
[Result "0-1"]
[Round "08"]
[TimeControl "180+2"]
[Date "2023.01.03"]
[WhiteClock "0:00:18"]
[BlackClock "0:00:18"]

1. d4 {[%clk 0:03:00]}  Nf6 {[%clk 0:02:59]} 2. c4 {[%clk 0:02:58]}  Nc6 {[%clk 0:02:58]} 3. Nf3 {[%clk 0:02:58]}  e6 {[%clk 0:02:58]} 4. g3 {[%clk 0:02:58]}  Bb4+ {[%clk 0:02:58]} 5. Bd2 {[%clk 0:02:58]}  Qe7 {[%clk 0:02:58]} 6. Nc3 {[%clk 0:02:58]}  O-O {[%clk 0:02:54]} 7. Bg2 {[%clk 0:02:53]}  Bxc3 {[%clk 0:02:53]} 8. Bxc3 {[%clk 0:02:54]}  Ne4 {[%clk 0:02:53]} 9. Rc1 {[%clk 0:02:54]}  d6 {[%clk 0:02:52]} 10. O-O {[%clk 0:02:54]}  Nxc3 {[%clk 0:02:50]} 11. Rxc3 {[%clk 0:02:54]}  e5 {[%clk 0:02:50]} 12. d5 {[%clk 0:02:53]}  Nb8 {[%clk 0:02:45]} 13. Nd2 {[%clk 0:02:33]}  a5 {[%clk 0:02:39]} 14. c5 {[%clk 0:02:25]}  dxc5 {[%clk 0:02:38]} 15. Nb3 {[%clk 0:02:20]}  Nd7 {[%clk 0:02:19]} 16. Qc2 {[%clk 0:02:12]}  Ra7 {[%clk 0:02:04]} 17. Nxc5 {[%clk 0:02:09]}  Nxc5 {[%clk 0:02:04]} 18. Rxc5 {[%clk 0:02:10]}  b6 {[%clk 0:02:05]} 19. Rc3 {[%clk 0:02:04]}  Rd8 {[%clk 0:01:57]} 20. Rc1 {[%clk 0:02:03]}  Rd7 {[%clk 0:01:56]} 21. Bh3 {[%clk 0:01:55]}  Rd8 {[%clk 0:01:55]} 22. Bxc8 {[%clk 0:01:40]}  Rxc8 {[%clk 0:01:56]} 23. Rc6 {[%clk 0:01:40]}  Rb7 {[%clk 0:01:41]} 24. d6 {[%clk 0:01:39]}  Qd7 {[%clk 0:01:41]} 25. dxc7 {[%clk 0:01:21]}  h5 {[%clk 0:01:38]} 26. Rd1 {[%clk 0:01:13]}  Qe7 {[%clk 0:01:25]} 27. Qf5 {[%clk 0:00:59]}  Rbxc7 {[%clk 0:01:08]} 28. Rxc7 {[%clk 0:00:47]}  Rxc7 {[%clk 0:00:59]} 29. Qxh5 {[%clk 0:00:45]}  Rc2 {[%clk 0:00:59]} 30. Qf5 {[%clk 0:00:22]}  Rxe2 {[%clk 0:00:30]} 31. Rc1 {[%clk 0:00:22]}  g6 {[%clk 0:00:22]} 32. Rc8+ {[%clk 0:00:21]}  Kg7 {[%clk 0:00:21]} 33. Qh3 {[%clk 0:00:21]}  Re1+ {[%clk 0:00:18]} 34. Kg2 {[%clk 0:00:19]}  Qb7+ {[%clk 0:00:19]} 35. f3 {[%clk 0:00:19]}  Re2+ {[%clk 0:00:18]} 36. Kf1 {[%clk 0:00:19]}  Qxf3+ {[%clk 0:00:18]} 37. Kg1 {[%clk 0:00:18]}  Re1+ {[%clk 0:00:18]} 0-1


[Site "https://www.chess.com"]

[Event "Titled Tuesday Blitz January 03 Late 2023"]
[White "Melikhov, Evgeny V."]
[Black "Reprintsev, Alexander"]
[WhiteFideId "4122046"]
[BlackFideId "14100541"]
[WhiteElo "2269"]
[BlackElo "2253"]
[Result "1-0"]
[Round "08"]
[TimeControl "180+2"]
[Date "2023.01.03"]
[WhiteClock "0:00:53"]
[BlackClock "0:00:51"]

1. d4 {[%clk 0:02:58]}  d5 {[%clk 0:02:59]} 2. c4 {[%clk 0:02:58]}  e5 {[%clk 0:02:58]} 3. dxe5 {[%clk 0:02:58]}  d4 {[%clk 0:02:58]} 4. Nf3 {[%clk 0:02:57]}  Nc6 {[%clk 0:02:58]} 5. g3 {[%clk 0:02:57]}  Nge7 {[%clk 0:02:57]} 6. Bg2 {[%clk 0:02:54]}  Ng6 {[%clk 0:02:57]} 7. Bg5 {[%clk 0:02:52]}  Qd7 {[%clk 0:02:56]} 8. O-O {[%clk 0:02:51]}  h6 {[%clk 0:02:56]} 9. Bc1 {[%clk 0:02:50]}  Ngxe5 {[%clk 0:02:55]} 10. Nbd2 {[%clk 0:02:47]}  Be7 {[%clk 0:02:54]} 11. Nxe5 {[%clk 0:02:38]}  Nxe5 {[%clk 0:02:53]} 12. Nf3 {[%clk 0:02:32]}  Nxf3+ {[%clk 0:02:50]} 13. Bxf3 {[%clk 0:02:31]}  c6 {[%clk 0:02:50]} 14. b3 {[%clk 0:02:22]}  O-O {[%clk 0:02:49]} 15. Bb2 {[%clk 0:02:18]}  Rd8 {[%clk 0:02:49]} 16. Qd3 {[%clk 0:02:15]}  Bf6 {[%clk 0:02:34]} 17. Rad1 {[%clk 0:02:10]}  c5 {[%clk 0:02:32]} 18. e3 {[%clk 0:01:58]}  a5 {[%clk 0:02:17]} 19. exd4 {[%clk 0:01:57]}  cxd4 {[%clk 0:02:17]} 20. Bd5 {[%clk 0:01:51]}  a4 {[%clk 0:01:49]} 21. Bxd4 {[%clk 0:01:49]}  Bxd4 {[%clk 0:01:48]} 22. Qxd4 {[%clk 0:01:49]}  axb3 {[%clk 0:01:38]} 23. axb3 {[%clk 0:01:48]}  Re8 {[%clk 0:01:26]} 24. Rfe1 {[%clk 0:01:44]}  Rxe1+ {[%clk 0:01:24]} 25. Rxe1 {[%clk 0:01:44]}  Ra2 {[%clk 0:01:23]} 26. Qe5 {[%clk 0:01:31]}  g6 {[%clk 0:01:08]} 27. Qe8+ {[%clk 0:01:26]}  Kg7 {[%clk 0:01:08]} 28. Qxd7 {[%clk 0:01:21]}  Bxd7 {[%clk 0:01:08]} 29. Bxb7 {[%clk 0:01:09]}  Rb2 {[%clk 0:01:05]} 30. Bd5 {[%clk 0:01:08]}  Bh3 {[%clk 0:00:59]} 31. c5 {[%clk 0:01:06]}  Kf6 {[%clk 0:00:55]} 32. c6 {[%clk 0:01:01]}  Rc2 {[%clk 0:00:55]} 33. Bc4 {[%clk 0:01:01]}  Be6 {[%clk 0:00:53]} 34. Rxe6+ {[%clk 0:00:52]}  fxe6 {[%clk 0:00:51]} 35. c7 {[%clk 0:00:53]} 1-0


[Site "https://www.chess.com"]

[Event "Titled Tuesday Blitz January 03 Late 2023"]
[White "Fernandez Garcia, Gumersindo"]
[Black "Almagro Mazariegos, Sebastian"]
[WhiteFideId "24516740"]
[BlackFideId "2221640"]
[WhiteElo "2160"]
[BlackElo "2280"]
[Result "1-0"]
[Round "08"]
[TimeControl "180+2"]
[Date "2023.01.03"]
[WhiteClock "0:00:12"]
[BlackClock "0:00:11"]

1. b3 {[%clk 0:02:14]}  Nf6 {[%clk 0:02:57]} 2. Bb2 {[%clk 0:02:15]}  e6 {[%clk 0:02:57]} 3. e3 {[%clk 0:02:16]}  d5 {[%clk 0:02:57]} 4. Nf3 {[%clk 0:02:16]}  c5 {[%clk 0:02:57]} 5. c4 {[%clk 0:02:17]}  Nc6 {[%clk 0:02:57]} 6. Be2 {[%clk 0:02:18]}  Be7 {[%clk 0:02:57]} 7. d3 {[%clk 0:02:18]}  O-O {[%clk 0:02:57]} 8. a3 {[%clk 0:02:19]}  b6 {[%clk 0:02:57]} 9. Nbd2 {[%clk 0:02:19]}  Bb7 {[%clk 0:02:57]} 10. h3 {[%clk 0:02:20]}  Rc8 {[%clk 0:02:53]} 11. O-O {[%clk 0:02:20]}  Qc7 {[%clk 0:02:52]} 12. Rc1 {[%clk 0:02:19]}  dxc4 {[%clk 0:02:51]} 13. Nxc4 {[%clk 0:02:18]}  Rfd8 {[%clk 0:02:46]} 14. Qc2 {[%clk 0:02:18]}  Nd7 {[%clk 0:02:39]} 15. Rfd1 {[%clk 0:02:18]}  Bf6 {[%clk 0:02:39]} 16. Bxf6 {[%clk 0:02:18]}  Nxf6 {[%clk 0:02:39]} 17. Qb2 {[%clk 0:02:18]}  Qe7 {[%clk 0:02:35]} 18. Nce5 {[%clk 0:02:10]}  Nxe5 {[%clk 0:02:34]} 19. Nxe5 {[%clk 0:02:11]}  Rd6 {[%clk 0:02:26]} 20. f4 {[%clk 0:02:00]}  Rdd8 {[%clk 0:02:16]} 21. g4 {[%clk 0:01:53]}  Nd7 {[%clk 0:02:10]} 22. Kf2 {[%clk 0:01:47]}  Qh4+ {[%clk 0:02:08]} 23. Kf1 {[%clk 0:01:18]}  Qg3 {[%clk 0:01:58]} 24. e4 {[%clk 0:00:54]}  Qxh3+ {[%clk 0:01:44]} 25. Kf2 {[%clk 0:00:40]}  Qh4+ {[%clk 0:01:27]} 26. Ke3 {[%clk 0:00:38]}  Nxe5 {[%clk 0:01:19]} 27. Qxe5 {[%clk 0:00:35]}  Qf6 {[%clk 0:01:04]} 28. Qxf6 {[%clk 0:00:33]}  gxf6 {[%clk 0:01:04]} 29. Rh1 {[%clk 0:00:30]}  Kg7 {[%clk 0:01:00]} 30. Rh3 {[%clk 0:00:29]}  h6 {[%clk 0:00:57]} 31. Rch1 {[%clk 0:00:28]}  Rh8 {[%clk 0:00:56]} 32. R1h2 {[%clk 0:00:28]}  e5 {[%clk 0:00:56]} 33. f5 {[%clk 0:00:25]}  Rcd8 {[%clk 0:00:55]} 34. Kd2 {[%clk 0:00:23]}  Bxe4 {[%clk 0:00:52]} 35. Kc3 {[%clk 0:00:23]}  Bb7 {[%clk 0:00:50]} 36. a4 {[%clk 0:00:21]}  a5 {[%clk 0:00:44]} 37. Bf1 {[%clk 0:00:19]}  Rd4 {[%clk 0:00:43]} 38. Be2 {[%clk 0:00:19]}  Bd5 {[%clk 0:00:41]} 39. Rg3 {[%clk 0:00:19]}  Re8 {[%clk 0:00:29]} 40. Rgh3 {[%clk 0:00:19]}  Rh8 {[%clk 0:00:27]} 41. Rh4 {[%clk 0:00:19]}  Rb4 {[%clk 0:00:24]} 42. Bd1 {[%clk 0:00:18]}  e4 {[%clk 0:00:22]} 43. dxe4 {[%clk 0:00:18]}  Bxe4 {[%clk 0:00:22]} 44. Be2 {[%clk 0:00:16]}  Bd5 {[%clk 0:00:21]} 45. Bd1 {[%clk 0:00:15]}  Re8 {[%clk 0:00:20]} 46. Rxh6 {[%clk 0:00:14]}  Re3+ {[%clk 0:00:19]} 47. Kd2 {[%clk 0:00:14]}  Rg3 {[%clk 0:00:18]} 48. Rh7+ {[%clk 0:00:14]}  Kf8 {[%clk 0:00:18]} 49. Rh8+ {[%clk 0:00:14]}  Ke7 {[%clk 0:00:18]} 50. Re2+ {[%clk 0:00:14]}  Re4 {[%clk 0:00:17]} 51. Rxe4+ {[%clk 0:00:12]}  Bxe4 {[%clk 0:00:18]} 52. Rb8 {[%clk 0:00:12]}  Bf3 {[%clk 0:00:14]} 53. Rxb6 {[%clk 0:00:11]}  Bxg4 {[%clk 0:00:14]} 54. Rb7+ {[%clk 0:00:10]}  Kd6 {[%clk 0:00:13]} 55. Bxg4 {[%clk 0:00:11]}  Rxg4 {[%clk 0:00:13]} 56. Rxf7 {[%clk 0:00:12]}  Ke5 {[%clk 0:00:13]} 57. Rc7 {[%clk 0:00:12]}  Kxf5 {[%clk 0:00:12]} 58. Rxc5+ {[%clk 0:00:13]}  Ke4 {[%clk 0:00:12]} 59. Rxa5 {[%clk 0:00:13]}  Rg2+ {[%clk 0:00:12]} 60. Kc3 {[%clk 0:00:14]}  f5 {[%clk 0:00:12]} 61. Ra8 {[%clk 0:00:14]}  f4 {[%clk 0:00:13]} 62. Re8+ {[%clk 0:00:14]}  Kf3 {[%clk 0:00:12]} 63. a5 {[%clk 0:00:14]}  Ra2 {[%clk 0:00:12]} 64. b4 {[%clk 0:00:15]}  Kg2 {[%clk 0:00:11]} 65. Kc4 {[%clk 0:00:15]}  f3 {[%clk 0:00:12]} 66. Rg8+ {[%clk 0:00:15]}  Kh1 {[%clk 0:00:12]} 67. Rf8 {[%clk 0:00:16]}  f2 {[%clk 0:00:10]} 68. Kb5 {[%clk 0:00:15]}  Kg1 {[%clk 0:00:10]} 69. a6 {[%clk 0:00:14]}  f1=Q+ {[%clk 0:00:10]} 70. Rxf1+ {[%clk 0:00:15]}  Kxf1 {[%clk 0:00:11]} 71. Kb6 {[%clk 0:00:15]}  Ke2 {[%clk 0:00:12]} 72. b5 {[%clk 0:00:12]}  Kd3 {[%clk 0:00:12]} 73. Ka7 {[%clk 0:00:12]}  Kc4 {[%clk 0:00:13]} 74. b6 {[%clk 0:00:12]}  Kc5 {[%clk 0:00:11]} 75. b7 {[%clk 0:00:13]}  Rb2 {[%clk 0:00:11]} 76. b8=Q {[%clk 0:00:12]} 1-0


[Site "https://www.chess.com"]

[Event "Titled Tuesday Blitz January 03 Late 2023"]
[White "Kujawski, Adam"]
[Black "Ibadov, Dashgyn"]
[WhiteFideId "1100920"]
[BlackFideId "24107514"]
[WhiteElo "2173"]
[BlackElo "2391"]
[Result "1-0"]
[Round "08"]
[TimeControl "180+2"]
[Date "2023.01.03"]
[WhiteClock "0:00:33"]
[BlackClock "0:00:02"]

1. e4 {[%clk 0:03:00]}  e5 {[%clk 0:02:59]} 2. Nf3 {[%clk 0:03:01]}  Nc6 {[%clk 0:02:59]} 3. Bb5 {[%clk 0:03:01]}  a6 {[%clk 0:03:00]} 4. Ba4 {[%clk 0:03:01]}  Nf6 {[%clk 0:03:00]} 5. O-O {[%clk 0:03:01]}  b5 {[%clk 0:02:54]} 6. Bb3 {[%clk 0:03:00]}  Be7 {[%clk 0:02:54]} 7. d4 {[%clk 0:03:00]}  d6 {[%clk 0:02:44]} 8. dxe5 {[%clk 0:03:00]}  Nxe5 {[%clk 0:02:42]} 9. Nxe5 {[%clk 0:02:59]}  dxe5 {[%clk 0:02:42]} 10. Qxd8+ {[%clk 0:02:59]}  Bxd8 {[%clk 0:02:41]} 11. a4 {[%clk 0:03:00]}  Bb7 {[%clk 0:02:36]} 12. axb5 {[%clk 0:03:00]}  axb5 {[%clk 0:02:36]} 13. Rxa8 {[%clk 0:03:00]}  Bxa8 {[%clk 0:02:37]} 14. Nc3 {[%clk 0:03:01]}  Nxe4 {[%clk 0:02:34]} 15. Nxe4 {[%clk 0:02:54]}  Bxe4 {[%clk 0:02:29]} 16. Re1 {[%clk 0:02:54]}  Bc6 {[%clk 0:02:18]} 17. Rxe5+ {[%clk 0:02:53]}  Be7 {[%clk 0:02:19]} 18. Be3 {[%clk 0:02:46]}  f6 {[%clk 0:02:18]} 19. Rh5 {[%clk 0:02:38]}  Kd7 {[%clk 0:02:14]} 20. Rh4 {[%clk 0:02:23]}  Ra8 {[%clk 0:02:09]} 21. Rd4+ {[%clk 0:02:21]}  Bd6 {[%clk 0:02:09]} 22. f3 {[%clk 0:02:08]}  Ke7 {[%clk 0:02:08]} 23. Kf2 {[%clk 0:02:00]}  Bd7 {[%clk 0:02:02]} 24. Re4+ {[%clk 0:01:52]}  Kf8 {[%clk 0:01:56]} 25. Bf4 {[%clk 0:01:49]}  Bxf4 {[%clk 0:01:48]} 26. Rxf4 {[%clk 0:01:49]}  c5 {[%clk 0:01:48]} 27. Bd5 {[%clk 0:01:46]}  Ra1 {[%clk 0:01:44]} 28. Re4 {[%clk 0:01:31]}  Rc1 {[%clk 0:01:40]} 29. Re2 {[%clk 0:01:30]}  Bf5 {[%clk 0:01:38]} 30. c3 {[%clk 0:01:27]}  b4 {[%clk 0:01:15]} 31. cxb4 {[%clk 0:01:20]}  cxb4 {[%clk 0:01:16]} 32. Be4 {[%clk 0:01:20]}  Bxe4 {[%clk 0:01:10]} 33. Rxe4 {[%clk 0:01:20]}  Rc2+ {[%clk 0:01:05]} 34. Re2 {[%clk 0:01:20]}  Rc4 {[%clk 0:00:57]} 35. Ke3 {[%clk 0:01:14]}  Kf7 {[%clk 0:00:57]} 36. Kd3 {[%clk 0:01:14]}  Rc6 {[%clk 0:00:53]} 37. Re4 {[%clk 0:01:14]}  b3 {[%clk 0:00:53]} 38. Rc4 {[%clk 0:01:10]}  Rd6+ {[%clk 0:00:46]} 39. Kc3 {[%clk 0:01:10]}  Rd1 {[%clk 0:00:41]} 40. Kxb3 {[%clk 0:01:09]}  Ke6 {[%clk 0:00:37]} 41. Rc2 {[%clk 0:01:07]}  g5 {[%clk 0:00:32]} 42. Kc3 {[%clk 0:01:07]}  h5 {[%clk 0:00:20]} 43. b4 {[%clk 0:01:06]}  Rh1 {[%clk 0:00:20]} 44. h3 {[%clk 0:01:06]}  Kd5 {[%clk 0:00:19]} 45. b5 {[%clk 0:01:04]}  Kc5 {[%clk 0:00:19]} 46. Rb2 {[%clk 0:01:03]}  Kb6 {[%clk 0:00:19]} 47. Kd4 {[%clk 0:01:01]}  g4 {[%clk 0:00:17]} 48. hxg4 {[%clk 0:00:56]}  hxg4 {[%clk 0:00:18]} 49. fxg4 {[%clk 0:00:55]}  Rh4 {[%clk 0:00:18]} 50. Ke4 {[%clk 0:00:54]}  Rxg4+ {[%clk 0:00:18]} 51. Kf5 {[%clk 0:00:54]}  Rg3 {[%clk 0:00:12]} 52. Kxf6 {[%clk 0:00:54]}  Rg8 {[%clk 0:00:11]} 53. Kf5 {[%clk 0:00:54]}  Rf8+ {[%clk 0:00:09]} 54. Kg4 {[%clk 0:00:53]}  Rg8+ {[%clk 0:00:09]} 55. Kh3 {[%clk 0:00:54]}  Rh8+ {[%clk 0:00:09]} 56. Kg3 {[%clk 0:00:54]}  Rg8+ {[%clk 0:00:10]} 57. Kh2 {[%clk 0:00:54]}  Rh8+ {[%clk 0:00:10]} 58. Kg1 {[%clk 0:00:54]}  Rg8 {[%clk 0:00:11]} 59. Rb3 {[%clk 0:00:54]}  Rg7 {[%clk 0:00:09]} 60. g3 {[%clk 0:00:54]}  Rg8 {[%clk 0:00:07]} 61. Kg2 {[%clk 0:00:55]}  Rg7 {[%clk 0:00:07]} 62. Kf3 {[%clk 0:00:55]}  Rf7+ {[%clk 0:00:06]} 63. Ke4 {[%clk 0:00:53]}  Rg7 {[%clk 0:00:06]} 64. Kf4 {[%clk 0:00:53]}  Rf7+ {[%clk 0:00:06]} 65. Ke5 {[%clk 0:00:53]}  Rg7 {[%clk 0:00:06]} 66. Kf5 {[%clk 0:00:40]}  Kc5 {[%clk 0:00:04]} 67. g4 {[%clk 0:00:37]}  Rf7+ {[%clk 0:00:02]} 68. Kg6 {[%clk 0:00:36]}  Rb7 {[%clk 0:00:02]} 69. g5 {[%clk 0:00:35]}  Kd6 {[%clk 0:00:02]} 70. Kf6 {[%clk 0:00:34]}  Rb8 {[%clk 0:00:02]} 71. b6 {[%clk 0:00:33]} 1-0


[Site "https://www.chess.com"]

[Event "Titled Tuesday Blitz January 03 Late 2023"]
[White "Quinones Garcia, Santiago"]
[Black "Graham, Nathaniel"]
[WhiteFideId "4408497"]
[BlackFideId "2007983"]
[WhiteElo "2248"]
[BlackElo "2262"]
[Result "1-0"]
[Round "08"]
[TimeControl "180+2"]
[Date "2023.01.03"]
[WhiteClock "0:01:47"]
[BlackClock "0:00:02"]

1. d4 {[%clk 0:02:55]}  d5 {[%clk 0:02:59]} 2. c4 {[%clk 0:02:55]}  c6 {[%clk 0:02:59]} 3. Nf3 {[%clk 0:02:55]}  Nf6 {[%clk 0:02:59]} 4. e3 {[%clk 0:02:55]}  Bg4 {[%clk 0:02:59]} 5. Nc3 {[%clk 0:02:54]}  e6 {[%clk 0:02:59]} 6. h3 {[%clk 0:02:54]}  Bh5 {[%clk 0:02:59]} 7. Qb3 {[%clk 0:02:54]}  Qb6 {[%clk 0:02:58]} 8. g4 {[%clk 0:02:54]}  Bg6 {[%clk 0:02:57]} 9. Nh4 {[%clk 0:02:55]}  Qxb3 {[%clk 0:02:56]} 10. axb3 {[%clk 0:02:55]}  Bc2 {[%clk 0:02:55]} 11. Nf3 {[%clk 0:02:39]}  Bxb3 {[%clk 0:02:53]} 12. c5 {[%clk 0:02:39]}  Nbd7 {[%clk 0:02:26]} 13. Bd3 {[%clk 0:02:33]}  b6 {[%clk 0:01:55]} 14. cxb6 {[%clk 0:02:31]}  Nxb6 {[%clk 0:01:55]} 15. Nd2 {[%clk 0:02:32]}  Bc4 {[%clk 0:01:50]} 16. Nxc4 {[%clk 0:02:29]}  dxc4 {[%clk 0:01:45]} 17. Be2 {[%clk 0:02:28]}  Bb4 {[%clk 0:01:30]} 18. O-O {[%clk 0:02:28]}  Kd7 {[%clk 0:01:17]} 19. Na4 {[%clk 0:02:25]}  Kc7 {[%clk 0:01:07]} 20. Nc5 {[%clk 0:02:23]}  Bxc5 {[%clk 0:01:01]} 21. dxc5 {[%clk 0:02:24]}  Nbd7 {[%clk 0:01:02]} 22. Bxc4 {[%clk 0:02:23]}  Nxc5 {[%clk 0:01:00]} 23. b4 {[%clk 0:02:23]}  Nce4 {[%clk 0:00:51]} 24. f3 {[%clk 0:02:21]}  Nd6 {[%clk 0:00:44]} 25. Be2 {[%clk 0:02:21]}  Rhb8 {[%clk 0:00:32]} 26. Bd2 {[%clk 0:02:19]}  Nd5 {[%clk 0:00:28]} 27. Rfb1 {[%clk 0:02:18]}  e5 {[%clk 0:00:16]} 28. e4 {[%clk 0:02:15]}  Nf4 {[%clk 0:00:14]} 29. Bf1 {[%clk 0:02:11]}  f6 {[%clk 0:00:13]} 30. Rc1 {[%clk 0:02:11]}  Kd7 {[%clk 0:00:09]} 31. Ra2 {[%clk 0:01:58]}  Nb5 {[%clk 0:00:08]} 32. Bxf4 {[%clk 0:01:52]}  exf4 {[%clk 0:00:08]} 33. Rd2+ {[%clk 0:01:51]}  Kc7 {[%clk 0:00:05]} 34. Rdc2 {[%clk 0:01:50]}  Nd4 {[%clk 0:00:02]} 35. Rc4 {[%clk 0:01:47]} 1-0


[Site "https://www.chess.com"]